bitfinex/quotes_ETHUSD_20241203
["timestamp","ask_amount","ask_price","bid_price","bid_amount"]
[1733217053714,0.25654159,3612.6,3612.1,0.05302646]
[1733217053950,0.25654159,3612.5,3611.4,1.5082]
[1733217054235,1.5073,3612.4,3611.7,2.76872]
[1733217054542,1.5073,3612.4,3611.8,2.76865]
[1733217054830,1.76384159,3612.4,3611.8,2.82208071]
[1733217055029,1.5073,3612.4,3611.9,2.76862]
[1733217055235,1.5073,3612.4,3611.9,0.05329595]
[1733217055547,0.25669835,3612.5,3612.3,2.76831]
[1733217055706,0.25669835,3612.6,3612.3,2.76831]
[1733217055905,0.25669835,3612.6,3612.5,2.76816]
[1733217056110,1.5073,3612.7,3612.5,2.76816]
[1733217056440,1.5073,3612.7,3612.5,0.05248756]
[1733217056592,1.5073,3612.7,3612.3,2.76829]
[1733217056796,1.5073,3612.7,3612.4,0.05262227]
[1733217056988,1.76399835,3612.7,3612.4,0.05262227]
[1733217057243,1.5073,3612.7,3612.4,2.76821]
[1733217057389,0.25669835,3612.6,3612.5,0.05248756]
[1733217057588,1.5073,3612.7,3612.5,0.05248756]
[1733217057798,1.78909835,3613.0,3612.5,0.05248756]
[1733217058105,0.25669835,3612.9,3612.5,2.76815]
[1733217058309,0.25669835,3612.9,3612.6,0.05235285]
[1733217058633,0.25669835,3612.8,3612.6,0.05235285]
[1733217058837,0.25669835,3612.9,3612.6,0.05235285]
[1733217059039,0.25669835,3612.8,3612.6,0.05235285]
[1733217059249,0.25669835,3613.1,3612.8,2.76793]
[1733217059446,0.25680171,3613.0,3612.7,4.41182816]
[1733217059610,0.25680171,3613.0,3612.9,2.76779]
[1733217059809,0.25680171,3614.0,3613.9,2.76709]
[1733217060011,3.55782205,3614.6,3612.6,0.28205029]
[1733217060012,1.77940171,3614.4,3613.2,1.5916]
[1733217060215,0.2568016,3614.3,3614.2,2.76686]
[1733217060614,0.2568016,3614.6,3614.1,2.76689]
[1733217060803,0.2568016,3614.5,3613.9,4.35866]
[1733217061131,0.25687951,3614.6,3614.4,2.76671]
[1733217061333,1.4689,3615.1,3614.4,2.76671]
[1733217061535,0.25689817,3614.6,3614.5,2.76663]
[1733217061854,0.25689817,3615.0,3614.5,2.76662]
[1733217062159,0.25689817,3614.9,3614.5,2.76662]
[1733217062448,1.72579817,3615.1,3614.2,2.76683]
[1733217062668,1.72579817,3615.1,3614.5,2.76662]
[1733217063018,1.72579817,3615.1,3614.7,2.76647]
[1733217063207,1.4689,3615.1,3614.5,2.7666]
[1733217063401,1.4689,3615.1,3614.2,3.01222693]
[1733217063622,1.4689,3615.1,3614.4,2.76669]
[1733217063816,1.4689,3615.1,3614.2,3.76522662]
[1733217063817,1.4689,3615.1,3613.9,7.53002693]
[1733217064018,1.4689,3615.1,3614.2,2.76686]
[1733217064234,1.4689,3615.1,3614.4,2.76668]
[1733217065224,1.4689,3615.1,3614.2,2.76681]
[1733217065425,1.4689,3615.1,3614.5,2.76658]
[1733217065667,1.4689,3615.1,3614.2,3.01222693]
[1733217065870,1.4689,3615.1,3614.6,2.76648]
[1733217066421,1.4689,3615.1,3614.4,2.7667]
[1733217066619,1.4689,3615.1,3614.5,2.76661]
[1733217066865,1.4689,3615.1,3614.3,2.76677]
[1733217067164,1.4689,3615.1,3614.0,2.76701]
[1733217067377,1.4689,3615.1,3613.9,7.53002693]
[1733217067571,1.4689,3615.1,3614.3,2.76678]
[1733217069275,1.4689,3615.1,3614.0,2.76696]
[1733217069427,1.4689,3615.1,3614.2,3.01222693]
[1733217069767,1.4689,3615.1,3614.6,2.76655]
[1733217069940,1.4689,3615.1,3614.7,2.76644]
[1733217070148,1.4689,3615.1,3614.3,2.76678]
[1733217070346,1.5568,3615.5,3614.6,2.76654]
[1733217070860,1.5568,3615.5,3614.4,1.5606]
[1733217070861,1.5568,3615.5,3614.7,2.76647]
[1733217072067,1.5568,3615.5,3614.4,4.32731]
[1733217072427,1.5568,3615.5,3614.6,2.76651]
[1733217072629,1.5568,3615.5,3614.4,4.32731]
[1733217072883,1.5568,3615.5,3614.6,2.7665]
[1733217074043,1.4922,3615.4,3614.2,2.76686]
[1733217074182,1.4922,3615.4,3614.0,1.5283]
[1733217074183,4.25815,3615.4,3614.0,1.5283]
[1733217074387,1.4922,3615.1,3613.8,0.56321956]
[1733217074625,1.4922,3615.1,3613.8,1.07359421]
[1733217074827,1.4922,3615.1,3614.6,2.76655]
[1733217075052,8.93,3615.6,3614.9,2.76625]
[1733217075053,1.4922,3615.4,3614.9,2.76625]
[1733217075207,1.4922,3615.4,3614.4,4.29494]
[1733217075541,1.4922,3615.4,3614.4,1.5283]
[1733217075684,1.4922,3615.4,3614.6,2.76649]
[1733217075886,1.4922,3615.4,3614.7,2.76644]
[1733217076839,1.4922,3615.4,3614.6,2.76654]
[1733217077134,3.01222693,3614.8,3614.6,2.76654]
[1733217077705,1.5108,3614.7,3614.1,1.484]
[1733217077899,3.01222693,3614.3,3613.8,4.3692]
[1733217078098,3.01222693,3614.3,3613.1,2.76768]
[1733217078099,3.01222693,3613.9,3613.5,4.36942]
[1733217078298,3.01222693,3613.9,3613.8,2.76714]
[1733217078826,3.01222693,3613.9,3613.2,2.0157169]
[1733217078995,3.01222693,3613.4,3613.3,0.20157169]
[1733217079193,3.01222693,3613.4,3613.3,2.96912169]
[1733217080111,3.01222693,3613.8,3613.7,2.76724]
[1733217080625,3.01222693,3614.1,3614.0,2.76701]
[1733217084150,3.01222693,3614.1,3613.4,1.5944]
[1733217084333,1.5236,3614.5,3613.4,1.5944]
[1733217084334,1.5236,3614.5,3613.9,2.76706]
[1733217085668,1.5236,3614.5,3614.0,2.76698]
[1733217085874,1.5236,3614.5,3614.2,2.76686]
[1733217086023,1.5236,3614.5,3614.3,2.76677]
[1733217086720,4.50402693,3614.8,3614.3,2.76677]
[1733217086922,3.01222693,3614.4,3614.3,2.76677]
[1733217088034,3.01222693,3614.4,3613.6,2.76732]
[1733217088243,3.01222693,3613.8,3613.6,2.76732]
[1733217088553,3.01222693,3613.8,3613.7,2.76724]
[1733217089622,3.01222693,3614.2,3614.1,2.76694]
[1733217100574,3.01222693,3615.0,3614.7,2.76641]
[1733217100774,0.25695111,3614.9,3614.7,2.76644]
[1733217101153,0.25695111,3614.9,3614.8,2.7664]
[1733217101691,3.01222693,3615.0,3614.8,2.7664]
[1733217102853,0.25704734,3614.9,3614.8,2.7664]
[1733217103999,3.01222693,3615.0,3614.8,2.7664]
[1733217104510,0.25708274,3614.9,3614.8,2.7664]
[1733217104801,0.25708274,3614.9,3614.2,2.76678]
[1733217104995,0.25708274,3614.9,3614.2,2.76686]
[1733217104996,3.01222693,3614.3,3614.2,2.76686]
[1733217105385,3.01222693,3614.3,3614.2,4.26756]
[1733217105576,3.01222693,3614.3,3614.2,2.76686]
[1733217106062,3.01222693,3614.7,3614.6,2.76653]
[1733217107200,3.55913633,3614.7,3614.4,2.76668]
[1733217107409,3.81629092,3614.7,3613.9,1.5007]
[1733217107699,3.01222693,3614.3,3614.2,2.76686]
[1733217108296,3.01222693,3614.3,3613.6,2.52703574]
[1733217108467,3.01222693,3614.3,3613.6,1.4726]
[1733217108811,3.01222693,3613.9,3613.5,2.76739]
[1733217108994,4.56072693,3613.9,3613.6,2.76729]
[1733217111567,4.56072693,3613.9,3613.4,2.7674]
[1733217111768,3.01222693,3613.5,3613.4,2.7674]
[1733217112067,3.01222693,3613.5,3613.2,2.76761]
[1733217112280,3.01222693,3613.5,3613.0,2.76778]
[1733217112464,3.01222693,3613.1,3612.8,2.76791]
[1733217112692,1.5134,3613.0,3612.5,2.76816]
[1733217112891,3.01222693,3612.7,3612.6,2.76808]
[1733217114609,3.01222693,3612.7,3612.4,2.76819]
[1733217115076,3.01222693,3612.7,3611.9,2.76856]
[1733217115281,3.01222693,3612.3,3612.2,2.76837]
[1733217116994,1.5983,3612.6,3612.3,2.76824]
[1733217116995,4.61052693,3612.6,3612.3,2.76824]
[1733217119018,3.01222693,3612.6,3612.5,2.76816]
[1733217119527,3.01222693,3612.6,3612.5,2.82066185]
[1733217120728,3.01222693,3612.6,3612.5,0.05250185]
[1733217121031,3.01222693,3612.6,3612.0,2.76854]
[1733217121233,3.01222693,3612.6,3612.5,0.05250185]
[1733217121525,3.01222693,3612.6,3612.5,2.82066185]
[1733217124016,4.57772693,3612.6,3612.5,2.82066185]
[1733217124336,3.01222693,3612.6,3612.5,2.82066185]
[1733217126712,1.5655,3613.0,3612.9,2.76785]
[1733217126713,3.01222693,3613.0,3612.9,2.76785]
[1733217127113,3.01222693,3613.0,3612.9,2.81981307]
[1733217127510,3.01222693,3613.3,3612.9,0.05196307]
[1733217127713,3.01222693,3613.3,3613.2,4.32832]
[1733217128048,3.01222693,3613.7,3613.6,2.76725]
[1733217131142,2.84501489,3613.7,3613.6,2.76725]
[1733217131843,3.01222693,3614.0,3613.6,2.76725]
[1733217132043,3.01222693,3614.0,3613.9,4.29029]
[1733217132219,3.01222693,3614.3,3614.2,2.76679]
[1733217132602,3.01222693,3614.6,3614.2,2.76679]
[1733217132805,3.01222693,3614.6,3614.5,2.76656]
[1733217133431,4.45632693,3614.9,3614.6,2.76649]
[1733217134377,3.01222693,3614.9,3614.4,1.5704]
[1733217134587,3.01222693,3614.9,3614.5,0.1598066]
[1733217134881,3.01222693,3614.9,3614.8,2.7664]
[1733217136179,3.01222693,3614.9,3614.0,1.564]
[1733217136374,3.01222693,3614.5,3614.4,2.76671]
[1733217137166,3.01222693,3614.8,3614.7,2.76648]
[1733217137558,3.01222693,3614.8,3614.7,4.33048]
[1733217137950,1.588,3615.5,3614.7,4.33048]
[1733217137951,3.01222693,3615.1,3614.8,2.7664]
[1733217138182,3.01222693,3615.1,3615.0,2.76625]
[1733217139901,3.01222693,3615.1,3614.7,1.564]
[1733217140202,1.588,3615.5,3614.7,2.76648]
[1733217140203,3.01222693,3614.8,3614.7,2.76648]
[1733217141454,4.45922693,3614.8,3614.5,2.76661]
[1733217141655,7.47145386,3614.8,3614.2,2.76679]
[1733217141856,3.01222693,3614.3,3614.2,2.76679]
[1733217145214,3.01222693,3614.6,3614.4,2.76666]
[1733217145415,3.01222693,3614.6,3614.1,2.76691]
[1733217145625,1.447,3614.8,3614.2,2.76686]
[1733217145917,1.447,3614.8,3614.3,2.76676]
[1733217146132,1.447,3614.8,3613.8,2.76712]
[1733217146304,3.01222693,3614.2,3613.7,1.4712]
[1733217146473,3.01222693,3614.2,3613.8,0.14712]
[1733217147575,3.01222693,3614.2,3614.1,2.76694]
[1733217148355,1.477,3614.1,3613.8,2.76711]
[1733217148942,1.477,3614.1,3613.3,2.76748]
[1733217149143,3.01222693,3613.6,3613.4,2.76745]
[1733217149293,3.01222693,3613.6,3613.2,2.76761]
[1733217149493,3.01222693,3613.6,3612.9,4.36242]
[1733217149736,3.01222693,3613.6,3613.3,2.76748]
[1733217150213,3.01222693,3613.6,3613.0,3.25984038]
[1733217150538,3.01222693,3613.6,3613.4,2.7674]
[1733217150704,3.01222693,3613.6,3613.5,3.31993331]
[1733217151047,3.01222693,3613.6,3613.5,2.7674]
[1733217151994,3.01222693,3614.0,3613.6,4.34576]
[1733217152200,1.6015,3614.4,3613.6,4.34576]
[1733217152201,3.01222693,3614.3,3613.7,2.76724]
[1733217152633,3.01222693,3614.3,3614.2,2.76686]
[1733217155315,3.01222693,3614.3,3614.0,2.767]
[1733217155530,3.01222693,3614.3,3613.9,2.76706]
[1733217155720,3.01222693,3614.0,3613.9,2.76706]
[1733217155951,3.01222693,3614.0,3613.7,2.76723]
[1733217156247,3.01222693,3614.0,3613.4,2.7674]
[1733217156248,3.01222693,3614.0,3613.8,2.76709]
[1733217156448,3.01222693,3614.0,3613.9,2.76709]
[1733217157350,3.01222693,3614.0,3613.5,0.27674]
[1733217157655,3.01222693,3613.7,3613.3,1.5472]
[1733217157808,3.01222693,3613.7,3613.6,2.76732]
[1733217161933,0.4103124,3614.5,3613.3,2.76751]
[1733217161934,3.01222693,3614.0,3613.9,2.76709]
[1733217163655,4.60342693,3614.0,3613.9,2.76709]
[1733217164454,4.60342693,3614.0,3613.7,2.76721]
[1733217164661,3.01222693,3613.8,3613.7,2.76721]
[1733217164963,3.01222693,3613.8,3612.6,1.503]
[1733217164964,1.5912,3613.7,3612.6,1.503]
[1733217165117,3.01222693,3613.0,3612.6,1.503]
[1733217165317,3.01222693,3613.0,3612.7,2.76799]
[1733217165558,3.01222693,3613.0,3612.8,2.76787]
[1733217165920,3.01222693,3613.0,3612.3,1.503]
[1733217165921,3.01222693,3613.0,3612.9,2.76785]
[1733217166659,3.01222693,3613.0,3612.7,2.76799]
[1733217166890,3.01222693,3612.8,3612.7,2.76799]
[1733217168869,3.01222693,3612.8,3612.7,2.8137622]
[1733217169284,3.01222693,3612.8,3612.7,0.0457722]
[1733217169701,3.01222693,3612.8,3612.5,2.76815]
[1733217169992,3.01222693,3612.8,3612.6,0.04589006]
[1733217170411,3.01222693,3612.8,3612.7,2.76801]
[1733217170575,1.5912,3613.1,3612.7,2.76801]
[1733217170576,3.01222693,3613.1,3613.0,2.76774]
[1733217171092,3.01222693,3613.1,3613.0,2.81315865]
[1733217173561,3.01222693,3613.1,3613.0,3.37870749]
[1733217174304,3.01222693,3613.1,3613.0,4.35425865]
[1733217176382,3.01222693,3613.1,3613.0,2.81315865]
[1733217179207,3.01222693,3613.1,3613.0,3.57789741]
[1733217181014,3.01222693,3613.5,3613.4,2.76747]
[1733217181311,3.01222693,3613.5,3613.0,0.04541865]
[1733217181613,3.01222693,3613.5,3613.1,2.81293082]
[1733217181813,3.01222693,3613.2,3613.1,2.81293082]
[1733217182882,3.01222693,3613.2,3613.1,0.04530082]
[1733217183621,3.01222693,3613.2,3613.1,2.7677]
[1733217185813,3.01222693,3613.2,3612.7,1.5225]
[1733217186013,3.01222693,3612.8,3612.7,2.76798]
[1733217186323,3.01222693,3612.8,3612.7,2.81333939]
[1733217188507,3.01222693,3612.8,3612.7,3.35744737]
[1733217194137,3.01222693,3612.8,3612.7,2.81333939]
[1733217195390,3.01222693,3612.8,3612.7,0.04535939]
[1733217195727,1.5821,3612.7,3611.9,1.5244]
[1733217195895,3.01222693,3612.0,3611.9,2.76856]
[1733217198257,3.01222693,3612.0,3611.6,2.76882]
[1733217199118,3.01222693,3611.7,3611.6,2.76882]
[1733217199327,3.01222693,3611.7,3611.5,2.76892]
[1733217199752,3.01222693,3611.7,3610.9,1.5221]
[1733217199925,3.01222693,3611.5,3611.4,2.76899]
[1733217201617,4.60002693,3611.5,3611.2,2.76913]
[1733217202667,4.60002693,3611.5,3611.0,2.76929]
[1733217202957,3.01222693,3611.1,3611.0,2.76929]
[1733217203455,3.01222693,3611.1,3610.7,2.76953]
[1733217203663,3.01222693,3610.8,3610.7,2.76953]
[1733217205262,3.01222693,3610.8,3610.7,2.81204593]
[1733217205960,3.01222693,3611.1,3611.0,2.76931]
[1733217206661,1.4382,3611.5,3611.3,2.76906]
[1733217206835,3.01222693,3611.4,3611.3,2.76906]
[1733217208694,3.01222693,3611.7,3611.6,2.76885]
[1733217208899,3.01222693,3612.1,3612.0,2.76854]
[1733217209361,1.5232,3612.4,3612.3,2.76831]
[1733217209561,1.5232,3613.0,3612.0,2.76854]
[1733217209798,1.5232,3613.0,3612.2,2.76832]
[1733217210866,0.55,3612.9,3612.2,2.76832]
[1733217211063,3.01222693,3612.3,3612.2,2.76832]
[1733217211463,3.01222693,3612.6,3612.5,2.76816]
[1733217212156,0.5623808,3613.7,3612.8,2.76793]
[1733217212157,3.01222693,3612.9,3612.8,2.76793]
[1733217212356,1.5795,3613.6,3612.8,4.27943]
[1733217212597,1.83521314,3613.6,3612.9,2.76785]
[1733217212890,3.01222693,3613.2,3613.1,2.7677]
[1733217213759,3.01222693,3613.5,3613.4,2.76747]
[1733217216306,3.01222693,3613.8,3613.7,2.76724]
[1733217221811,1.5692,3614.2,3613.7,2.76724]
[1733217222015,3.01222693,3613.9,3613.8,2.76716]
[1733217222170,3.01222693,3613.9,3613.5,2.76733]
[1733217222376,3.01222693,3613.6,3613.5,2.76733]
[1733217224536,3.01222693,3613.6,3612.6,2.76808]
[1733217224723,3.01222693,3613.6,3613.3,2.76753]
[1733217224724,1.5261,3613.6,3613.3,2.76753]
[1733217225470,1.5261,3613.6,3613.1,2.76769]
[1733217225623,3.01222693,3613.2,3613.1,2.76769]
[1733217226066,3.01222693,3613.2,3612.6,1.5592]
[1733217226223,3.01222693,3612.9,3612.6,2.0920869]
[1733217226425,3.01222693,3612.9,3612.8,2.76793]
[1733217230373,3.01222693,3613.2,3613.1,2.76765]
[1733217231183,3.01222693,3613.5,3613.4,2.76744]
[1733217231371,3.01222693,3613.5,3613.2,2.7676]
[1733217232267,3.01222693,3613.5,3613.3,2.76748]
[1733217233191,3.01222693,3613.5,3613.1,1.4561]
[1733217233192,3.01222693,3613.5,3613.4,2.76747]
[1733217233877,3.01222693,3613.5,3613.4,3.466591]
[1733217234251,0.55760577,3614.5,3613.6,2.76727]
[1733217234252,3.01222693,3613.8,3613.6,2.76727]
[1733217234493,3.01222693,3613.8,3612.9,2.76785]
[1733217234494,3.01222693,3614.1,3614.0,2.76701]
[1733217234705,0.1,3615.6,3614.0,2.76701]
[1733217234706,3.01222693,3614.5,3614.0,2.76701]
[1733217234992,3.01222693,3614.5,3614.1,2.76692]
[1733217235289,3.01222693,3614.5,3613.9,1.424]
[1733217235495,3.01222693,3614.2,3613.9,1.424]
[1733217235711,3.01222693,3614.2,3614.1,2.76694]
[1733217236257,3.01222693,3614.5,3614.4,2.76668]
[1733217240767,3.01222693,3614.5,3613.9,1.424]
[1733217240998,3.01222693,3614.5,3614.2,2.76684]
[1733217241179,3.01222693,3614.5,3613.9,1.424]
[1733217241395,3.01222693,3614.5,3614.0,0.1424]
[1733217241698,3.01222693,3614.5,3614.4,2.76671]
[1733217242323,3.01222693,3614.5,3614.0,0.1424]
[1733217242631,3.01222693,3614.5,3614.3,2.76678]
[1733217243291,3.01222693,3614.5,3614.4,2.76671]
[1733217243699,3.01222693,3614.8,3614.7,2.76648]
[1733217245027,3.01222693,3614.8,3614.5,4.19941]
[1733217245530,3.01222693,3614.8,3614.5,2.76661]
[1733217245833,1.4463,3614.7,3614.3,2.76674]
[1733217245990,1.70248672,3614.7,3614.0,1.5875]
[1733217246297,4.45852693,3614.7,3614.2,2.76686]
[1733217247430,4.45852693,3614.7,3614.5,2.76662]
[1733217247785,4.45852693,3614.7,3614.6,2.76655]
[1733217248013,3.01222693,3614.7,3614.6,2.76655]
[1733217248625,3.01222693,3614.7,3614.6,3.18517549]
[1733217251141,4.41542693,3614.7,3614.1,0.15875]
[1733217251350,3.01222693,3614.3,3614.1,2.76687]
[1733217251504,1.4032,3614.2,3613.9,2.76708]
[1733217253835,1.4032,3614.2,3613.4,1.449]
[1733217254034,1.4032,3614.2,3613.8,2.76716]
[1733217254204,1.4032,3614.2,3613.4,1.449]
[1733217254205,1.4032,3614.2,3613.7,2.76722]
[1733217254409,1.4032,3614.2,3613.5,2.7674]
[1733217254609,3.01222693,3614.3,3613.6,0.42164]
[1733217254811,3.01222693,3614.3,3613.9,2.76704]
[1733217255039,3.01222693,3614.3,3614.1,2.7669]
[1733217255258,3.01222693,3614.3,3614.1,2.76688]
[1733217255417,3.01222693,3614.3,3614.2,2.76686]
[1733217255747,3.01222693,3614.7,3614.3,2.76671]
[1733217256411,3.01222693,3614.7,3614.1,2.76692]
[1733217256745,3.01222693,3614.3,3614.1,2.76692]
[1733217257531,3.01222693,3614.3,3614.2,2.76686]
[1733217257727,3.01222693,3614.7,3613.7,1.4214]
[1733217257928,3.01222693,3614.7,3614.4,2.76668]
[1733217258750,3.01222693,3614.7,3614.2,2.76684]
[1733217259026,3.01222693,3614.7,3614.3,2.76677]
[1733217259227,0.25649316,3614.6,3614.3,2.76677]
[1733217259655,0.25649316,3614.6,3614.1,2.76691]
[1733217259977,0.25649316,3614.6,3614.2,2.76683]
[1733217260346,0.25649316,3614.6,3613.7,1.840279]
[1733217260532,0.25662751,3614.6,3613.9,2.76709]
[1733217260726,0.25662751,3614.6,3613.8,3.2279369]
[1733217261766,0.25662751,3614.6,3614.3,2.76678]
[1733217262739,3.01222693,3614.7,3614.5,2.76663]
[1733217262949,1.4863,3615.0,3614.5,2.76663]
[1733217262950,1.4863,3615.0,3614.8,2.76638]
[1733217263157,1.74319189,3615.0,3614.5,2.76663]
[1733217263353,3.01222693,3614.6,3614.3,2.76671]
[1733217263737,3.01222693,3614.6,3614.1,1.5513]
[1733217264239,3.01222693,3614.6,3614.4,2.7667]
[1733217264240,0.25710168,3614.5,3614.4,2.7667]
[1733217264649,0.25710168,3614.5,3614.1,2.76692]
[1733217264836,1.74340168,3614.5,3614.1,2.76692]
[1733217267596,1.74345758,3614.5,3614.2,2.76682]
[1733217268343,0.25715758,3614.4,3614.2,2.76682]
[1733217268732,1.74345758,3614.5,3614.2,2.76682]
[1733217268932,1.74345758,3614.5,3614.0,2.76699]
[1733217269729,0.25715758,3614.4,3614.0,2.76699]
[1733217270876,0.25715758,3614.4,3613.8,1.5513]
[1733217271084,0.25715758,3614.5,3613.9,0.21087729]
[1733217271397,0.25715758,3614.5,3614.4,2.76671]
[1733217272036,3.01222693,3614.6,3614.4,4.25161]
[1733217272237,3.01222693,3614.6,3614.5,2.76663]
[1733217272803,3.01222693,3615.0,3614.5,2.76663]
[1733217272936,3.01222693,3615.0,3614.9,2.76632]
[1733217273134,3.2694523,3615.0,3614.9,2.76632]
[1733217273977,3.2133552,3615.0,3614.9,2.76632]
[1733217274659,0.25722537,3615.0,3614.9,2.76632]
[1733217274848,0.25722537,3615.2,3615.0,2.76617]
[1733217277177,1.4899,3615.1,3614.3,2.76678]
[1733217277476,3.01222693,3614.4,3614.3,2.76678]
[1733217277681,3.01222693,3614.4,3614.2,0.00257795]
[1733217278482,3.01222693,3614.4,3614.3,2.76678]
[1733217278975,3.01222693,3614.4,3614.2,0.00257795]
[1733217280913,1.3999,3614.3,3614.2,0.00257795]
[1733217281121,1.65696186,3614.3,3614.2,0.00257795]
[1733217283109,2.22155995,3614.3,3614.2,0.00257795]
[1733217284732,2.22155995,3614.3,3613.4,2.76743]
[1733217285025,3.01222693,3613.5,3613.4,2.76743]
[1733217286110,3.01222693,3613.5,3613.3,1.5454]
[1733217286408,3.01222693,3613.5,3613.3,4.31288]
[1733217286978,3.01222693,3613.5,3613.4,2.76747]
[1733217289221,3.01222693,3613.5,3612.9,1.5018]
[1733217289379,3.01222693,3613.5,3613.2,2.76761]
[1733217289579,3.01222693,3613.5,3612.9,1.5018]
[1733217289877,3.01222693,3613.5,3613.3,2.7675]
[1733217293283,3.01222693,3613.5,3613.1,2.76763]
[1733217293512,3.01222693,3613.5,3613.2,2.76755]
[1733217294731,3.01222693,3613.5,3612.6,1.5043]
[1733217294876,3.01222693,3613.0,3612.6,2.76805]
[1733217295523,3.01222693,3613.0,3612.4,1.108045]
[1733217295687,3.01222693,3612.5,3612.0,4.27284]
[1733217296021,3.01222693,3612.5,3612.3,2.7683]
[1733217296216,3.01222693,3612.5,3612.1,2.81471678]
[1733217296430,3.01222693,3612.5,3612.4,0.04591311]
[1733217296625,3.01222693,3612.5,3612.1,2.76845]
[1733217296922,3.01222693,3612.5,3611.9,2.76859]
[1733217297126,3.01222693,3612.1,3612.0,0.04638468]
[1733217299507,3.0,3613.2,3612.4,2.76824]
[1733217299508,3.01222693,3612.5,3612.4,2.76824]
[1733217299829,3.01222693,3612.8,3612.6,2.76803]
[1733217300182,3.01222693,3612.8,3612.7,2.76801]
[1733217300383,3.01222693,3612.8,3612.7,2.81356951]
[1733217300819,3.01222693,3612.8,3612.7,0.04555951]
[1733217301088,3.01222693,3612.8,3612.6,2.76807]
[1733217301284,3.01222693,3612.8,3612.7,0.04555951]
[1733217301933,3.01222693,3612.8,3612.7,2.81356951]
[1733217302135,3.01222693,3612.8,3612.7,4.35636951]
[1733217303197,3.01222693,3612.8,3612.7,2.81356951]
[1733217303400,3.01222693,3612.8,3612.7,0.04555951]
[1733217304341,3.01222693,3612.8,3612.7,2.76801]
[1733217304537,3.01222693,3612.8,3612.7,2.81356951]
[1733217305623,3.01222693,3612.8,3612.7,0.04555951]
[1733217305964,3.01222693,3612.8,3612.7,2.81356951]
[1733217307055,3.01222693,3613.2,3613.1,2.7677]
[1733217307214,3.01222693,3613.2,3613.1,2.6468529]
[1733217308652,3.01222693,3613.2,3613.1,0.04529457]
[1733217309014,3.01222693,3613.2,3612.9,2.76779]
[1733217309352,4.56392693,3613.2,3613.0,0.0454124]
[1733217309555,1.5517,3613.2,3613.0,0.0454124]
[1733217309774,1.5517,3613.2,3612.8,2.7679]
[1733217309934,3.01222693,3612.9,3612.8,2.7679]
[1733217310282,3.01222693,3612.9,3612.8,2.81354809]
[1733217310430,1.5123,3613.4,3613.3,2.76755]
[1733217310637,3.01222693,3613.4,3613.3,2.76753]
[1733217310874,3.01222693,3613.4,3612.9,4.31634]
[1733217310875,3.01222693,3613.4,3613.2,2.76761]
[1733217312265,3.01222693,3613.4,3612.9,1.5485]
[1733217312266,3.01222693,3613.4,3613.3,2.76755]
[1733217313436,3.01222693,3613.4,3612.9,4.31634]
[1733217313638,3.01222693,3613.0,3612.2,2.76835]
[1733217313942,1.5002,3613.3,3612.7,2.768]
[1733217314685,4.5002,3613.3,3612.3,2.76827]
[1733217314874,3.01222693,3612.3,3612.1,2.76847]
[1733217315250,3.01222693,3612.3,3611.9,2.76861]
[1733217315550,3.01222693,3612.3,3612.0,2.76851]
[1733217316139,3.01222693,3612.3,3611.6,4.17268]
[1733217316340,3.01222693,3612.3,3611.6,4.7007774]
[1733217316537,3.01222693,3612.3,3612.2,2.76839]
[1733217317185,3.01222693,3612.3,3612.0,2.76853]
[1733217319208,3.01222693,3612.3,3611.8,2.76868]
[1733217319799,3.01222693,3612.3,3611.9,2.76855]
[1733217320001,3.01222693,3612.3,3611.6,1.9319974]
[1733217320302,3.01222693,3612.3,3611.9,2.76856]
[1733217320877,3.01222693,3612.0,3611.6,2.76878]
[1733217321210,3.01222693,3612.0,3611.5,2.76888]
[1733217321364,3.01222693,3611.7,3611.6,2.76885]
[1733217321570,1.4275,3612.4,3611.6,2.76885]
[1733217321571,3.01222693,3612.0,3611.9,2.76862]
[1733217325200,3.01222693,3612.0,3611.9,2.81564808]
[1733217327423,3.01222693,3612.4,3612.3,2.76831]
[1733217327621,3.01222693,3612.4,3612.1,2.76845]
[1733217327783,3.01222693,3612.4,3612.3,0.0465565]
[1733217327988,3.01222693,3612.4,3612.3,2.76831]
[1733217328188,3.01222693,3612.4,3612.3,2.8148665]
[1733217328986,3.01222693,3612.4,3612.3,0.0465565]
[1733217329333,3.01222693,3612.4,3612.1,2.76845]
[1733217329498,3.01222693,3612.4,3612.2,0.04667438]
[1733217329907,3.01222693,3612.4,3612.3,2.76831]
[1733217330224,3.01222693,3612.4,3612.3,2.8148665]
[1733217330630,1.5269,3612.7,3612.5,2.76814]
[1733217330920,1.5163,3613.1,3612.6,2.81426412]
[1733217331093,0.25650978,3613.1,3613.0,2.76778]
[1733217331296,3.01222693,3613.2,3613.0,2.81349272]
[1733217332135,3.01222693,3613.2,3613.1,2.7677]
[1733217332343,3.01222693,3613.2,3613.1,2.81872462]
[1733217333612,1.5163,3613.4,3613.2,2.76758]
[1733217333812,3.01222693,3613.3,3613.2,2.76758]
[1733217336243,3.01222693,3613.6,3613.5,2.76734]
[1733217336446,3.01222693,3613.6,3613.2,2.76758]
[1733217336447,3.01222693,3613.9,3613.7,2.76717]
[1733217336942,0.25646833,3613.8,3613.7,2.76717]
[1733217337101,3.01222693,3613.9,3613.7,2.76717]
[1733217337300,0.25649216,3613.8,3613.6,2.76728]
[1733217337503,3.01222693,3613.7,3613.6,2.76728]
[1733217339727,2.08336442,3614.1,3613.1,1.5221]
[1733217339911,3.01222693,3613.7,3613.6,2.76732]
[1733217340111,3.01222693,3613.7,3613.6,2.81802008]
[1733217346908,3.01222693,3614.0,3613.9,2.76709]
[1733217347108,3.01222693,3614.0,3613.9,2.81714235]
[1733217348322,3.01222693,3614.6,3614.5,2.76663]
[1733217348523,3.01222693,3614.6,3614.5,2.81630108]
[1733217348851,1.4532,3615.2,3614.5,0.04967108]
[1733217349061,3.01222693,3614.9,3614.7,2.76641]
[1733217349412,3.01222693,3614.9,3614.8,0.04933044]
[1733217349918,3.01222693,3614.9,3614.8,0.04926375]
[1733217350140,3.01222693,3614.9,3614.7,2.76641]
[1733217350345,3.01222693,3614.9,3614.8,0.04926375]
[1733217350545,3.01222693,3615.2,3614.9,2.76625]
[1733217350743,3.01222693,3615.2,3615.0,0.04913672]
[1733217351058,3.01222693,3615.2,3615.1,2.76617]